fUSD/lending_fUSD_20241205
["ID","MTS","AMOUNT","RATE_DAILY","PERIOD"]
[344402126,1733417435119,-433.98,5.426e-05,2]
[344402127,1733417435128,-250.0,5.446e-05,2]
[344402128,1733417435139,-1054.25,5.479e-05,2]
[344402129,1733417435148,-200.0,5.479e-05,2]
[344402130,1733417435157,-1500.0,5.479e-05,2]
[344402131,1733417435168,-61568.08,5.479e-05,2]
[344402132,1733417435177,-250.0,5.479e-05,2]
[344402133,1733417435187,-2622.19,5.491e-05,2]
[344402134,1733417435196,-255.0,5.632e-05,2]
[344402135,1733417435208,-166.58,5.757e-05,2]
[344402136,1733417435219,-166.75,5.757e-05,2]
[344402137,1733417435228,-176.63,5.994e-05,2]
[344402139,1733417435238,-435.43,6.041e-05,2]
[344402140,1733417435247,-643.68,6.041e-05,2]
[344402142,1733417435256,-157.97,6.071e-05,2]
[344402144,1733417435266,-166.58,6.073e-05,2]
[344402146,1733417435275,-166.75,6.073e-05,2]
[344402148,1733417435285,-433.98,6.105e-05,2]
[344402151,1733417435294,-433.0,6.195e-05,2]
[344402153,1733417435303,-3500.0,6.2e-05,2]
[344402155,1733417435313,-252.85052371,6.288e-05,2]
[344402158,1733417435323,-6936.4,6.293e-05,2]
[344402160,1733417435332,-6936.4,6.295e-05,2]
[344402162,1733417435342,-252.85052371,6.295e-05,2]
[344402164,1733417435351,-6936.4,6.296e-05,2]
[344402166,1733417435360,-6936.4,6.298e-05,2]
[344402168,1733417435369,-6936.4,6.3e-05,2]
[344402170,1733417435378,-7100.0,6.3e-05,2]
[344402172,1733417435387,-6936.4,6.301e-05,2]
[344402174,1733417435396,-400.01,6.301e-05,2]
[344402176,1733417435406,-1600.0,6.301e-05,2]
[344402178,1733417435415,-252.85052371,6.302e-05,2]
[344402180,1733417435424,-6936.4,6.303e-05,2]
[344402182,1733417435436,-6936.4,6.305e-05,2]
[344402184,1733417435444,-6936.4,6.306e-05,2]
[344402186,1733417435458,-6936.4,6.308e-05,2]
[344402188,1733417435468,-252.85052371,6.309e-05,2]
[344402189,1733417435478,-6936.4,6.31e-05,2]
[344402190,1733417435487,-435.43,6.311e-05,2]
[344402191,1733417435496,-6936.4,6.311e-05,2]
[344402192,1733417435505,-6936.4,6.313e-05,2]
[344402193,1733417435514,-6936.4,6.314e-05,2]
[344402194,1733417435523,-252.85052371,6.316e-05,2]
[344402195,1733417435532,-6936.4,6.316e-05,2]
[344402196,1733417435542,-6936.4,6.318e-05,2]
[344402197,1733417435551,-6936.4,6.319e-05,2]
[344402198,1733417435560,-6936.4,6.321e-05,2]
[344402199,1733417435569,-6936.4,6.323e-05,2]
[344402200,1733417435577,-252.85052371,6.323e-05,2]
[344402201,1733417435586,-6936.4,6.324e-05,2]
[344402202,1733417435595,-252.85052371,6.33e-05,2]
[344402203,1733417435605,-252.85052371,6.337e-05,2]
[344402204,1733417435614,-252.85052371,6.344e-05,2]
[344402205,1733417435623,-252.85052371,6.351e-05,2]
[344402206,1733417435632,-252.85052371,6.358e-05,2]
[344402207,1733417435641,-252.85052371,6.365e-05,2]
[344402208,1733417435650,-252.85052371,6.372e-05,2]
[344402209,1733417435659,-252.85052371,6.379e-05,2]
[344402210,1733417435668,-252.85052371,6.386e-05,2]
[344402211,1733417435677,-166.58,6.39e-05,2]
[344402212,1733417435687,-166.75,6.39e-05,2]
[344402213,1733417435696,-252.85052371,6.394e-05,2]
[344402214,1733417435708,-10700.0,6.4e-05,2]
[344402215,1733417435717,-252.85052371,6.401e-05,2]
[344402216,1733417435727,-252.85052371,6.408e-05,2]
[344402217,1733417435736,-252.85052371,6.415e-05,2]
[344402218,1733417435745,-252.85052371,6.422e-05,2]
[344402219,1733417435754,-252.85052371,6.429e-05,2]
[344402220,1733417435763,-252.85052371,6.436e-05,2]
[344402221,1733417435772,-252.85052371,6.443e-05,2]
[344402222,1733417435781,-605.0,6.446e-05,2]
[344402223,1733417436039,-2187.24723829,6.446e-05,2]
[344402224,1733417436052,-757.01750001,6.446e-05,2]
[344402232,1733417437831,-150.0,5.056e-05,2]
[344402233,1733417437840,-2116.976,6.446e-05,2]
[344402234,1733417437851,-2016.4,6.446e-05,2]
[344402235,1733417437887,-2626.8,6.446e-05,2]
[344402236,1733417438000,-2112.23884391,6.446e-05,2]
[344402237,1733417438011,-718.16041779,6.446e-05,2]
[344402238,1733417438020,-252.85052371,6.45e-05,2]
[344402239,1733417438030,-241.43905855,6.451e-05,2]
[344402240,1733417438041,-628.92094145,6.451e-05,2]
[344402241,1733417438051,-252.85052371,6.457e-05,2]
[344402242,1733417438059,-290.24,6.461e-05,2]
[344402243,1733417438069,-252.85052371,6.464e-05,2]
[344402244,1733417438078,-767.95,6.471e-05,2]
[344402245,1733417438087,-252.85052371,6.471e-05,2]
[344402246,1733417438099,-252.85052371,6.478e-05,2]
[344402247,1733417438109,-252.85052371,6.485e-05,2]
[344402248,1733417438118,-252.85052371,6.492e-05,2]
[344402249,1733417438127,-252.85052371,6.499e-05,2]
[344402250,1733417438137,-1703.06225382,6.5e-05,2]
[344402251,1733417438148,-7199.10975745,6.5e-05,2]
[344402252,1733417438237,-2381.6,6.5e-05,2]
[344402253,1733417438248,-1812.29724,6.5e-05,2]
[344402254,1733417438260,-1203.93074873,6.5e-05,2]
[344402255,1733417438269,-159.90672876,6.506e-05,2]
[344402258,1733417438298,-92.94379495,6.506e-05,2]
[344402260,1733417438307,-252.85052371,6.513e-05,2]
[344402262,1733417438317,-252.85052371,6.521e-05,2]
[344402264,1733417438327,-252.85052371,6.528e-05,2]
[344402266,1733417438336,-400.01,6.535e-05,2]
[344402268,1733417438346,-771.45694592,6.535e-05,2]
[344402271,1733417438357,-517.7691157,6.535e-05,2]
[344402310,1733417439846,-310.77393838,6.535e-05,2]
[344402312,1733417439858,-252.85052371,6.535e-05,2]
[344402314,1733417439867,-252.85052371,6.542e-05,2]
[344402316,1733417439876,-252.85052371,6.549e-05,2]
[344402318,1733417439886,-252.85052371,6.556e-05,2]
[344402319,1733417439895,-252.85052371,6.563e-05,2]
[344402320,1733417439904,-252.85052371,6.57e-05,2]
[344402321,1733417439913,-252.85052371,6.577e-05,2]
[344402322,1733417439923,-252.85052371,6.584e-05,2]
[344402323,1733417439932,-252.85052371,6.591e-05,2]
[344402324,1733417439941,-252.85052371,6.598e-05,2]
[344402325,1733417439951,-17900.0,6.6e-05,2]
[344402326,1733417439966,-252.85052371,6.605e-05,2]
[344402327,1733417439975,-252.85052371,6.612e-05,2]
[344402328,1733417439984,-252.85052371,6.619e-05,2]
[344402329,1733417439993,-252.85052371,6.626e-05,2]
[344402330,1733417440002,-252.85052371,6.633e-05,2]
[344402331,1733417440011,-252.85052371,6.641e-05,2]
[344402332,1733417440020,-252.85052371,6.648e-05,2]
[344402333,1733417440030,-252.85052371,6.655e-05,2]
[344402334,1733417440040,-252.85052371,6.662e-05,2]
[344402335,1733417440049,-252.85052371,6.669e-05,2]
[344402336,1733417440058,-252.85052371,6.676e-05,2]
[344402337,1733417440068,-252.85052371,6.683e-05,2]
[344402338,1733417440077,-252.85052371,6.69e-05,2]
[344402339,1733417440086,-252.85052371,6.697e-05,2]
[344402340,1733417440096,-3500.0,6.7e-05,2]
[344402341,1733417440106,-252.85052371,6.704e-05,2]
[344402342,1733417440116,-166.58,6.707e-05,2]
[344402343,1733417440125,-166.75,6.707e-05,2]
[344402344,1733417440135,-252.85052371,6.711e-05,2]
[344402345,1733417440144,-252.85052371,6.718e-05,2]
[344402346,1733417440152,-252.85052371,6.725e-05,2]
[344402347,1733417440162,-252.85052371,6.732e-05,2]
[344402348,1733417440172,-252.85052371,6.739e-05,2]
[344402349,1733417440181,-252.85052371,6.746e-05,2]
[344402350,1733417440190,-252.85052371,6.753e-05,2]
[344402351,1733417440199,-252.85052371,6.76e-05,2]
[344402352,1733417440210,-252.85052371,6.768e-05,2]
[344402353,1733417440219,-400.01,6.768e-05,2]
[344402354,1733417440229,-1600.0,6.768e-05,2]
[344402355,1733417440238,-252.85052371,6.775e-05,2]
[344402356,1733417440247,-252.85052371,6.782e-05,2]
[344402357,1733417440256,-433.98,6.783e-05,2]
[344402358,1733417440265,-252.85052371,6.789e-05,2]
[344402359,1733417440275,-252.85052371,6.796e-05,2]
[344402360,1733417440285,-3500.0,6.8e-05,2]
[344402361,1733417440294,-252.85052371,6.803e-05,2]
[344402362,1733417440303,-252.85052371,6.81e-05,2]
[344402363,1733417440312,-736.0,6.815e-05,2]
[344402364,1733417440322,-252.85052371,6.817e-05,2]
[344402365,1733417440331,-252.85052371,6.824e-05,2]
[344402366,1733417440339,-252.85052371,6.831e-05,2]
[344402367,1733417440348,-252.85052371,6.838e-05,2]
[344402368,1733417440357,-252.85052371,6.845e-05,2]
[344402369,1733417440367,-252.85052371,6.852e-05,2]
[344402370,1733417440376,-252.85052371,6.859e-05,2]
[344402371,1733417440385,-27614.0,6.861e-05,2]
[344402372,1733417440394,-252.85052371,6.866e-05,2]
[344402373,1733417440403,-252.85052371,6.873e-05,2]
[344402374,1733417440412,-252.85052371,6.88e-05,2]
[344402375,1733417440421,-252.85052371,6.888e-05,2]
[344402376,1733417440430,-252.85052371,6.895e-05,2]
[344402377,1733417440440,-2500.0,6.899e-05,2]
[344402378,1733417440449,-3500.0,6.9e-05,2]
[344402379,1733417440460,-252.85052371,6.902e-05,2]
[344402380,1733417440470,-435.43,6.903e-05,2]
[344402381,1733417440479,-435.43,6.903e-05,2]
[344402382,1733417440488,-876.64,6.903e-05,2]
[344402383,1733417440497,-252.85052371,6.909e-05,2]
[344402384,1733417440506,-252.85052371,6.916e-05,2]
[344402385,1733417440515,-252.85052371,6.923e-05,2]
[344402386,1733417440524,-252.85052371,6.93e-05,2]
[344402387,1733417440533,-252.85052371,6.937e-05,2]
[344402388,1733417440542,-252.85052371,6.944e-05,2]
[344402389,1733417440551,-252.85052371,6.951e-05,2]
[344402390,1733417440560,-252.85052371,6.958e-05,2]
[344402391,1733417440569,-28812.0,6.959e-05,2]
[344402392,1733417440579,-4902.0,6.959e-05,2]
[344402393,1733417440589,-252.85052371,6.965e-05,2]
[344402394,1733417440599,-252.85052371,6.972e-05,2]
[344402395,1733417440607,-275.01674508,6.973e-05,2]
[344402396,1733417440617,-511.3901929,6.973e-05,2]
[344402397,1733417440627,-500.0,6.973e-05,2]
[344402398,1733417440636,-434.97807611,6.973e-05,2]
[344402399,1733417440645,-424.296109,6.973e-05,2]
[344402400,1733417440654,-500.0,6.973e-05,2]
[344402401,1733417440664,-161.214572,6.973e-05,2]
[344402402,1733417440673,-500.0,6.973e-05,2]
[344402403,1733417440682,-500.0,6.973e-05,2]
[344402404,1733417440691,-500.0,6.973e-05,2]
[344402405,1733417440701,-252.85052371,6.979e-05,2]
[344402406,1733417440712,-435.43,6.98e-05,2]
[344402407,1733417440721,-252.85052371,6.986e-05,2]
[344402408,1733417440730,-10176.0,6.986e-05,2]
[344402409,1733417440739,-124830.80526649,6.999e-05,2]
[344402410,1733417440748,-20000.0,7e-05,2]
[344402411,1733417440757,-1567799.55543978,7e-05,2]
[344402412,1733417441068,-363.9636,7e-05,2]
[344402413,1733417441079,-8790.22599035,7e-05,2]
[344402414,1733417441102,-439.83573598,7e-05,2]
[344402415,1733417441113,-5061.0,7e-05,2]
[344402416,1733417441124,-35744.11150059,7e-05,2]
[344402417,1733417441135,-10310.28202644,7e-05,2]
[344402418,1733417441154,-251.61684541,7e-05,2]
[344402419,1733417441815,-250.0,5.749e-05,2]
[344402420,1733417441824,-3795.77006656,7e-05,2]
[344402421,1733417441835,-891.85343745,7e-05,2]
[344402422,1733417441872,-201911.31435517,7e-05,2]
[344402429,1733417442909,-485.305,7e-05,2]
[344402431,1733417442920,-7034.0447052,7e-05,2]
[344402433,1733417442931,-6204.83079775,7e-05,2]
[344402435,1733417442941,-4382.7,7e-05,2]
[344402438,1733417442968,-13184.273884,7e-05,2]
[344402439,1733417442979,-2421.46600799,7e-05,2]
[344402440,1733417442990,-25195.0,7e-05,2]
[344402441,1733417443231,-6564.02690176,7e-05,2]
[344402442,1733417443243,-3343.48254813,7e-05,2]
[344402443,1733417443289,-39655.55712142,7e-05,2]
[344402444,1733417443300,-29486.60002289,7e-05,2]
[344402445,1733417443311,-4055.9,7e-05,2]
[344402446,1733417443328,-924894.02229796,7e-05,2]
[344402447,1733417443341,-433.90147,7e-05,2]
[344402448,1733417443359,-4029.2,7e-05,2]
[344402452,1733417445872,-1558.75,6.021e-05,2]
[344402453,1733417445882,-43369.89491951,7e-05,2]
[344402454,1733417445894,-4817.972286,7e-05,2]
[344402455,1733417445906,-475.66000002,7e-05,2]
[344402456,1733417445931,-500.0,7e-05,2]
[344402457,1733417446047,-4293.86000791,7e-05,2]
[344402458,1733417446058,-2145.461875,7e-05,2]
[344402459,1733417446070,-15158.41773,7e-05,2]
[344402460,1733417446111,-647.1467888,7e-05,2]
[344402461,1733417446182,-50080.61800001,7e-05,2]
[344402462,1733417446194,-592.3808919,7e-05,2]
[344402466,1733417446538,-1522.5,7e-05,2]
[344402474,1733417730751,-502.17,6.45e-05,2]
[344402475,1733417730774,-1382.2905285,6.512e-05,2]
[344402476,1733417730796,-11937.4,6.513e-05,2]
[344402477,1733417730818,-151.61663114,6.513e-05,2]
[344402478,1733417730841,-2500.0,6.9e-05,2]
[344402479,1733417730865,-1000.0,6.9e-05,2]
[344402480,1733417730887,-580.7553482,6.973e-05,2]
[344402481,1733417730913,-500.0,6.973e-05,2]
[344402482,1733417730936,-150.0,6.998e-05,2]
[344402483,1733417730960,-500.0,6.999e-05,2]
[344402484,1733417730985,-353.23316939,6.999e-05,2]
[344402485,1733417731007,-500.0,6.999e-05,2]
[344402486,1733417731029,-500.0,6.999e-05,2]
[344402487,1733417731052,-471.49233621,6.999e-05,2]
[344402488,1733417731075,-500.0,6.999e-05,2]
[344402489,1733417731101,-514.16504681,6.999e-05,2]
[344402490,1733417731123,-500.0,6.999e-05,2]
[344402491,1733417731146,-500.0,6.999e-05,2]
[344402492,1733417731170,-500.0,6.999e-05,2]
[344402493,1733417731197,-500.0,6.999e-05,2]
[344402494,1733417731221,-500.0,6.999e-05,2]
[344402495,1733417731247,-500.0,6.999e-05,2]
[344402496,1733417731271,-500.0,6.999e-05,2]
[344402497,1733417731294,-500.0,6.999e-05,2]
[344402498,1733417731317,-500.0,6.999e-05,2]
[344402499,1733417731338,-20000.0,7e-05,2]
[344402500,1733417731366,-16336216.79620479,7e-05,2]
[344402501,1733417731390,-3500.0,7e-05,2]
[344402502,1733417731413,-1324.44185316,7e-05,2]
[344402503,1733417731436,-19339.94352559,7e-05,2]
[344402504,1733417731458,-400.01,7.001e-05,2]
[344402505,1733417731480,-1600.0,7.001e-05,2]
[344402506,1733417731508,-201.8,7.01e-05,2]
[344402507,1733417731530,-400.01,7.234e-05,2]
[344402508,1733417731553,-1600.0,7.234e-05,2]
[344402509,1733417731578,-502.17,7.256e-05,2]
[344402510,1733417731603,-405.29,7.261e-05,2]
[344402511,1733417731625,-585.0,7.299e-05,2]
[344402512,1733417731648,-645.127,7.32e-05,2]
[344402513,1733417731670,-166.84,7.392e-05,2]
[344402514,1733417731692,-500.0,7.397e-05,2]
[344402515,1733417731714,-500.0,7.397e-05,2]
[344402516,1733417731738,-500.0,7.397e-05,2]
[344402517,1733417731760,-500.0,7.397e-05,2]
[344402518,1733417731782,-500.0,7.397e-05,2]
[344402519,1733417731804,-500.0,7.397e-05,2]
[344402520,1733417731828,-500.0,7.397e-05,2]
[344402521,1733417731849,-500.0,7.397e-05,2]
[344402522,1733417731873,-500.0,7.397e-05,2]
[344402523,1733417731895,-500.0,7.397e-05,2]
[344402524,1733417731917,-500.0,7.397e-05,2]
[344402525,1733417731938,-500.0,7.397e-05,2]
[344402526,1733417731960,-639.12093859,7.397e-05,2]
[344402527,1733417731982,-500.0,7.397e-05,2]
[344402528,1733417732007,-500.0,7.397e-05,2]
[344402529,1733417732028,-500.0,7.397e-05,2]
[344402530,1733417732051,-500.0,7.397e-05,2]
[344402531,1733417732074,-500.0,7.397e-05,2]
[344402532,1733417732096,-500.0,7.397e-05,2]
[344402533,1733417732118,-500.0,7.397e-05,2]
[344402534,1733417732141,-500.0,7.397e-05,2]
[344402535,1733417732164,-500.0,7.397e-05,2]
[344402536,1733417732195,-500.0,7.397e-05,2]
[344402537,1733417732218,-500.0,7.397e-05,2]
[344402538,1733417732245,-500.0,7.397e-05,2]
[344402539,1733417732267,-500.0,7.397e-05,2]
[344402540,1733417732290,-500.0,7.397e-05,2]
[344402541,1733417732312,-500.0,7.397e-05,2]
[344402542,1733417732342,-500.0,7.397e-05,2]
[344402543,1733417732372,-500.0,7.397e-05,2]
[344402544,1733417732396,-500.0,7.397e-05,2]
[344402545,1733417732419,-500.0,7.397e-05,2]
[344402546,1733417732443,-500.0,7.397e-05,2]
[344402547,1733417732466,-500.0,7.397e-05,2]
[344402548,1733417732489,-501.32060102,7.397e-05,2]
[344402549,1733417732513,-500.0,7.397e-05,2]
[344402550,1733417732536,-500.0,7.397e-05,2]
[344402551,1733417732559,-500.0,7.397e-05,2]
[344402552,1733417732582,-500.0,7.397e-05,2]
[344402553,1733417732605,-500.0,7.397e-05,2]
[344402554,1733417732627,-500.0,7.397e-05,2]
[344402555,1733417732651,-500.0,7.397e-05,2]
[344402556,1733417732674,-500.0,7.397e-05,2]
[344402557,1733417732697,-500.0,7.397e-05,2]
[344402558,1733417732720,-500.0,7.397e-05,2]
[344402559,1733417732745,-500.0,7.397e-05,2]
[344402560,1733417732769,-500.0,7.397e-05,2]
[344402561,1733417732792,-500.0,7.397e-05,2]
[344402562,1733417732815,-500.0,7.397e-05,2]
[344402563,1733417732837,-530.44528193,7.397e-05,2]
[344402564,1733417732860,-500.0,7.397e-05,2]
[344402565,1733417732883,-500.0,7.397e-05,2]
[344402566,1733417732908,-500.0,7.397e-05,2]
[344402567,1733417732932,-500.0,7.397e-05,2]
[344402568,1733417732956,-500.0,7.397e-05,2]
[344402569,1733417732979,-500.0,7.397e-05,2]
[344402570,1733417733004,-500.0,7.397e-05,2]
[344402571,1733417733028,-500.0,7.397e-05,2]
[344402572,1733417733053,-396.56,7.397e-05,2]
[344402573,1733417733076,-500.0,7.397e-05,2]
[344402574,1733417733099,-500.0,7.397e-05,2]
[344402575,1733417733122,-293.88,7.397e-05,2]
[344402576,1733417733146,-868.65,7.397e-05,2]
[344402577,1733417733169,-868.65,7.397e-05,2]
[344402578,1733417733195,-868.65,7.397e-05,2]
[344402579,1733417733219,-868.65,7.397e-05,2]
[344402580,1733417733244,-500.0,7.397e-05,2]
[344402581,1733417733268,-331.59945743,7.397e-05,2]
[344402582,1733417733292,-868.65,7.397e-05,2]
[344402583,1733417733316,-868.65,7.397e-05,2]
[344402584,1733417733339,-868.65,7.397e-05,2]
[344402585,1733417733363,-868.65,7.397e-05,2]
[344402586,1733417733387,-868.65,7.397e-05,2]
[344402587,1733417733411,-868.65,7.397e-05,2]
[344402588,1733417733437,-868.65,7.397e-05,2]
[344402589,1733417733461,-868.65,7.397e-05,2]
[344402590,1733417733488,-868.65,7.397e-05,2]
[344402591,1733417733513,-500.0,7.397e-05,2]
[344402592,1733417733539,-500.0,7.397e-05,2]
[344402593,1733417733564,-868.65,7.397e-05,2]
[344402594,1733417733588,-500.0,7.397e-05,2]
[344402595,1733417733612,-868.65,7.397e-05,2]
[344402596,1733417733637,-515.12,7.397e-05,2]
[344402597,1733417733662,-868.65,7.397e-05,2]
[344402598,1733417733689,-868.65,7.397e-05,2]
[344402599,1733417733713,-868.65,7.397e-05,2]
[344402600,1733417733997,-868.65,7.397e-05,2]
[344402601,1733417734023,-868.65,7.397e-05,2]
[344402602,1733417734048,-868.65,7.397e-05,2]
[344402603,1733417734072,-500.0,7.397e-05,2]
[344402604,1733417734096,-500.0,7.397e-05,2]
[344402605,1733417734120,-500.0,7.397e-05,2]
[344402606,1733417734145,-500.0,7.397e-05,2]
[344402607,1733417734169,-868.65,7.397e-05,2]
[344402608,1733417734198,-500.0,7.397e-05,2]
[344402609,1733417734223,-868.65,7.397e-05,2]
[344402610,1733417734249,-500.0,7.397e-05,2]
[344402611,1733417734275,-868.80573533,7.397e-05,2]
[344402612,1733417734299,-417.05570926,7.397e-05,2]
[344402613,1733417734330,-519.76,7.397e-05,2]
[344402614,1733417734354,-519.76,7.397e-05,2]
[344402615,1733417734379,-519.76,7.397e-05,2]
[344402616,1733417734402,-519.76,7.397e-05,2]
[344402617,1733417734425,-519.76,7.397e-05,2]
[344402618,1733417734450,-519.76,7.397e-05,2]
[344402619,1733417734474,-519.76,7.397e-05,2]
[344402620,1733417734500,-519.76,7.397e-05,2]
[344402621,1733417734523,-519.76,7.397e-05,2]
[344402622,1733417734551,-519.76,7.397e-05,2]
[344402623,1733417734575,-519.76,7.397e-05,2]
[344402624,1733417734598,-519.76,7.397e-05,2]
[344402625,1733417734623,-519.76,7.397e-05,2]
[344402626,1733417734647,-519.76,7.397e-05,2]
[344402627,1733417734671,-519.76,7.397e-05,2]
[344402628,1733417734696,-519.76,7.397e-05,2]
[344402629,1733417734720,-519.76,7.397e-05,2]
[344402630,1733417734746,-519.76,7.397e-05,2]
[344402631,1733417734770,-519.76,7.397e-05,2]
[344402632,1733417734793,-519.76,7.397e-05,2]
[344402633,1733417734817,-519.76,7.397e-05,2]
[344402634,1733417734839,-519.76,7.397e-05,2]
[344402635,1733417734861,-519.76,7.397e-05,2]
[344402636,1733417734884,-519.79,7.397e-05,2]
[344402637,1733417734906,-974.99,7.397e-05,2]
[344402638,1733417734927,-974.99,7.397e-05,2]
[344402639,1733417734948,-974.99,7.397e-05,2]
[344402640,1733417734969,-974.99,7.397e-05,2]
[344402641,1733417734994,-974.99,7.397e-05,2]
[344402642,1733417735016,-974.99,7.397e-05,2]
[344402643,1733417735038,-974.99,7.397e-05,2]
[344402644,1733417735060,-974.99,7.397e-05,2]
[344402645,1733417735081,-974.99,7.397e-05,2]
[344402646,1733417735103,-974.99,7.397e-05,2]
[344402647,1733417735124,-974.99,7.397e-05,2]
[344402648,1733417735145,-974.99,7.397e-05,2]
[344402649,1733417735169,-974.99,7.397e-05,2]
[344402650,1733417735194,-974.99,7.397e-05,2]
[344402651,1733417735217,-974.99,7.397e-05,2]
[344402652,1733417735245,-974.99,7.397e-05,2]
[344402653,1733417735268,-974.99,7.397e-05,2]
[344402654,1733417735291,-974.99,7.397e-05,2]
[344402655,1733417735314,-974.99,7.397e-05,2]
[344402656,1733417735336,-974.99,7.397e-05,2]
[344402657,1733417735359,-974.99,7.397e-05,2]
[344402658,1733417735380,-974.99,7.397e-05,2]
[344402659,1733417735402,-974.99,7.397e-05,2]
[344402660,1733417735424,-975.0631147,7.397e-05,2]
[344402661,1733417735446,-500.0,7.397e-05,2]
[344402662,1733417735469,-500.0,7.397e-05,2]
[344402663,1733417735494,-249.21045217,7.397e-05,2]
[344402664,1733417735515,-500.0,7.397e-05,2]
[344402665,1733417735537,-500.0,7.397e-05,2]
[344402666,1733417735559,-500.0,7.397e-05,2]
[344402667,1733417735582,-500.0,7.397e-05,2]
[344402668,1733417735604,-500.0,7.397e-05,2]
[344402669,1733417735626,-325.34491663,7.397e-05,2]
[344402670,1733417735651,-2793.04,7.397e-05,2]
[344402671,1733417735673,-2793.04,7.397e-05,2]
[344402672,1733417735695,-2793.04,7.397e-05,2]
[344402673,1733417735718,-2793.04,7.397e-05,2]
[344402674,1733417735743,-2793.04,7.397e-05,2]
[344402675,1733417735765,-2793.04,7.397e-05,2]
[344402676,1733417735789,-2793.04,7.397e-05,2]
[344402677,1733417735812,-2793.04,7.397e-05,2]
[344402678,1733417735834,-2793.04,7.397e-05,2]
[344402679,1733417735856,-2793.04,7.397e-05,2]
[344402680,1733417735878,-2793.04,7.397e-05,2]
[344402681,1733417735901,-2793.04,7.397e-05,2]
[344402682,1733417735923,-2793.04,7.397e-05,2]
[344402683,1733417735944,-2793.04,7.397e-05,2]
[344402684,1733417735968,-2793.04,7.397e-05,2]
[344402685,1733417735992,-2793.04,7.397e-05,2]
[344402686,1733417736014,-2793.04,7.397e-05,2]
[344402687,1733417736037,-2793.04,7.397e-05,2]
[344402688,1733417736060,-2793.04,7.397e-05,2]
[344402689,1733417736083,-2793.04,7.397e-05,2]
[344402690,1733417736105,-2793.04,7.397e-05,2]
[344402691,1733417736128,-2793.04,7.397e-05,2]
[344402692,1733417736150,-2793.04,7.397e-05,2]
[344402693,1733417736172,-2793.17817679,7.397e-05,2]
[344402694,1733417736198,-500.0,7.397e-05,2]
[344402695,1733417736220,-273.29890095,7.397e-05,2]
[344402696,1733417736246,-969.6,7.397e-05,2]
[344402697,1733417736270,-969.6,7.397e-05,2]
[344402698,1733417736293,-969.6,7.397e-05,2]
[344402699,1733417736316,-969.6,7.397e-05,2]
[344402700,1733417736340,-969.6,7.397e-05,2]
[344402701,1733417736364,-969.6,7.397e-05,2]
[344402702,1733417736388,-969.6,7.397e-05,2]
[344402703,1733417736410,-969.6,7.397e-05,2]
[344402704,1733417736433,-969.6,7.397e-05,2]
[344402705,1733417736455,-969.6,7.397e-05,2]
[344402706,1733417736478,-969.6,7.397e-05,2]
[344402707,1733417736503,-969.6,7.397e-05,2]
[344402708,1733417736527,-969.6,7.397e-05,2]
[344402709,1733417736551,-969.6,7.397e-05,2]
[344402710,1733417736573,-969.6,7.397e-05,2]
[344402711,1733417736596,-969.6,7.397e-05,2]
[344402712,1733417736619,-969.6,7.397e-05,2]
[344402713,1733417736642,-969.6,7.397e-05,2]
[344402714,1733417736665,-969.6,7.397e-05,2]
[344402715,1733417736688,-969.6,7.397e-05,2]
[344402716,1733417736710,-969.6,7.397e-05,2]
[344402717,1733417736734,-969.6,7.397e-05,2]
[344402718,1733417736758,-969.6,7.397e-05,2]
[344402719,1733417736781,-969.74111025,7.397e-05,2]
[344402720,1733417736804,-1060.74,7.397e-05,2]
[344402721,1733417736826,-1060.74,7.397e-05,2]
[344402722,1733417736848,-1060.74,7.397e-05,2]
[344402723,1733417736870,-1060.74,7.397e-05,2]
[344402724,1733417736892,-1060.74,7.397e-05,2]
[344402725,1733417736913,-1060.74,7.397e-05,2]
[344402726,1733417736935,-1060.74,7.397e-05,2]
[344402727,1733417736957,-1060.74,7.397e-05,2]
[344402728,1733417736980,-1060.74,7.397e-05,2]
[344402729,1733417737011,-1060.74,7.397e-05,2]
[344402730,1733417737035,-1060.74,7.397e-05,2]
[344402731,1733417737059,-559.36215898,7.397e-05,2]
[344402732,1733417737082,-1060.74,7.397e-05,2]
[344402733,1733417737105,-1060.74,7.397e-05,2]